bitfinex/quotes_ETHUSD_20260304
["timestamp","ask_amount","ask_price","bid_price","bid_amount"]
[1772583068575,3.08230639,1983.1,1982.1,5.04506043]
[1772583070347,3.08230639,1982.9,1982.1,5.04506043]
[1772583071266,3.08230639,1982.9,1982.1,8.12959211]
[1772583071579,5.04252889,1983.2,1982.3,3.08453168]
[1772583071580,3.08230639,1983.2,1982.3,3.08453168]
[1772583071777,0.001,1983.3,1982.3,3.08453168]
[1772583072075,1.26152635,1983.3,1982.3,3.08453168]
[1772583072472,0.001,1983.3,1982.5,3.08453168]
[1772583073966,3.08230639,1983.2,1982.0,0.0011]
[1772583074275,3.08230639,1983.1,1981.9,0.0011]
[1772583074974,3.08230639,1982.9,1981.9,0.0011]
[1772583077156,3.08230639,1982.7,1981.9,0.0011]
[1772583077354,3.08230639,1982.5,1981.9,0.0011]
[1772583077561,3.08230639,1982.3,1981.9,0.0011]
[1772583079592,2.98642668,1982.1,1982.0,0.0011]
[1772583080356,2.98642668,1982.1,1981.7,0.0011]
[1772583081521,1.26135216,1982.0,1981.7,0.0011]
[1772583083318,4.24777884,1982.0,1981.7,0.0011]
[1772583088289,2.98642668,1981.9,1981.7,0.0011]
[1772583089721,1.26147946,1981.8,1981.7,0.0011]
[1772583092724,6.31277884,1982.0,1981.7,0.0011]
[1772583094131,2.98642668,1981.9,1981.7,0.0011]
[1772583095835,1.2614753,1981.9,1981.7,0.0011]
[1772583096038,2.066,1982.0,1981.7,0.0011]
[1772583096215,4.24775995,1982.1,1981.7,0.0011]
[1772583096216,6.31375995,1982.1,1981.7,0.0011]
[1772583096411,2.98642668,1982.2,1981.7,0.0011]
[1772583097738,2.98642668,1982.0,1981.7,0.0011]
[1772583100852,3.32928853,1982.1,1981.7,0.0011]
[1772583101023,3.32928853,1982.1,1981.7,3.12703731]
[1772583101536,2.068,1982.1,1981.7,3.12703731]
[1772583102644,1.26126205,1982.2,1981.7,4.38855987]
[1772583102818,1.26126205,1982.2,1981.7,4.38857171]
[1772583103023,1.26126205,1982.2,1981.8,0.0011]
[1772583103214,4.24768873,1982.2,1981.8,0.0011]
[1772583103416,0.001,1981.9,1981.8,0.0011]
[1772583105052,1.26241581,1981.9,1981.8,0.0011]
[1772583106443,4.24884249,1981.9,1981.5,0.0011]
[1772583106622,2.98642668,1981.8,1981.5,0.0011]
[1772583107545,1.26154311,1981.7,1981.5,0.0011]
[1772583109047,2.07,1981.9,1981.5,3.02657946]
[1772583109349,3.33142216,1981.9,1981.5,3.02657946]
[1772583113424,6.28147529,1981.9,1981.5,0.0011]
[1772583114958,6.28147529,1981.9,1981.6,0.0011]
[1772583115458,0.001,1981.8,1981.6,0.0011]
[1772583119859,2.069,1982.1,1981.7,3.02547946]
[1772583120361,5.04398896,1982.6,1981.9,3.02547946]
[1772583120362,2.069,1982.6,1981.9,3.02547946]
[1772583120662,1.26090684,1982.7,1981.9,3.02547946]
[1772583120963,2.95005313,1982.6,1981.9,3.02547946]
[1772583121149,2.95005313,1982.6,1981.7,3.02547946]
[1772583122374,1.26103404,1982.5,1981.9,3.02547946]
[1772583122662,2.069,1982.4,1981.9,3.02547946]
[1772583123577,5.04413619,1982.6,1981.9,3.02547946]
[1772583123578,4.21101025,1982.7,1981.9,3.02547946]
[1772583123742,2.95005313,1982.6,1981.9,3.02547946]
[1772583124666,2.95005313,1982.6,1982.1,3.02547946]
[1772583124667,1.26103404,1982.5,1982.1,3.02547946]
[1772583125652,4.21193302,1982.8,1982.1,3.02547946]
[1772583126085,2.95005313,1982.7,1981.9,4.28685163]
[1772583126293,2.95005313,1982.7,1981.9,3.02547946]
[1772583126500,2.95005313,1982.7,1981.7,3.02547946]
[1772583126797,2.95005313,1982.5,1981.8,3.02547946]
[1772583126999,5.01805313,1982.4,1981.8,3.02547946]
[1772583127595,5.01805313,1982.4,1981.8,3.02657946]
[1772583127795,2.95005313,1982.3,1981.8,3.02657946]
[1772583129269,1.26117813,1982.3,1981.9,3.02547946]
[1772583133103,5.04439659,1982.4,1981.9,4.28687721]
[1772583133489,4.2119979,1982.7,1982.0,3.02547946]
[1772583134802,2.95005313,1982.6,1981.8,3.02657946]
[1772583135002,2.95005313,1982.6,1981.8,0.0011]
[1772583135300,1.26103404,1982.5,1981.8,3.02657946]
[1772583135507,2.95005313,1982.4,1981.8,3.02657946]
[1772583136080,0.001,1982.7,1981.8,3.02657946]
[1772583136290,1.26097503,1982.6,1981.8,3.02657946]
[1772583137383,5.04483798,1982.7,1982.0,3.02547946]
[1772583138108,0.001,1982.7,1982.0,3.02547946]
[1772583138484,5.0437462,1983.1,1982.2,2.99273811]
[1772583138485,4.25240566,1983.1,1982.2,2.99273811]
[1772583138684,4.25332081,1983.3,1982.2,2.99273811]
[1772583139613,3.02931213,1983.2,1982.4,3.05435083]
[1772583140314,1.26157461,1983.3,1982.4,3.05435083]
[1772583140315,0.001,1982.5,1982.4,3.05435083]
[1772583141033,4.29088674,1983.3,1982.3,3.05435083]
[1772583141731,3.02931213,1983.2,1982.5,3.05435083]
[1772583143616,1.26065251,1983.1,1982.5,4.31535924]
[1772583143805,4.28996464,1983.1,1982.5,4.31535924]
[1772583144007,4.28996464,1983.1,1982.5,3.05435083]
[1772583144329,4.28996464,1983.1,1982.5,4.3153836]
[1772583144647,3.02931213,1983.0,1982.5,3.05435083]
[1772583144842,3.02931213,1983.0,1982.3,3.05435083]
[1772583146419,4.29009179,1982.9,1982.3,4.3155107]
[1772583146815,3.02931213,1982.8,1982.2,1.26120485]
[1772583147022,3.02931213,1982.8,1982.2,4.31555568]
[1772583147214,3.02931213,1982.8,1982.3,3.05435083]
[1772583150858,3.02931213,1982.8,1981.8,3.05545083]
[1772583150859,3.02931213,1982.6,1981.8,3.05545083]
[1772583151025,3.02931213,1982.6,1981.8,0.0011]
[1772583151631,3.02931213,1982.6,1981.9,0.0011]
[1772583152835,4.29034617,1982.5,1981.9,0.0011]
[1772583153675,4.29034617,1982.5,1981.9,3.05545083]
[1772583153831,3.02931213,1982.4,1981.9,0.0011]
[1772583154750,4.2904734,1982.3,1981.9,0.0011]
[1772583156153,3.02931213,1982.2,1981.9,0.0011]
[1772583156885,1.26128853,1982.1,1981.9,0.0011]
[1772583158675,5.04412023,1982.6,1981.9,3.05280142]
[1772583158838,1.26109765,1982.4,1981.9,3.05280142]
[1772583159167,4.29040978,1982.4,1981.9,4.31419301]
[1772583159463,3.02931213,1982.6,1982.0,3.04874833]
[1772583159650,0.001,1982.7,1982.0,3.04874833]
[1772583159856,1.26190923,1982.7,1982.0,3.04874833]
[1772583161388,3.02931213,1982.6,1982.0,4.31005889]
[1772583161776,1.26190923,1982.7,1982.1,3.04285879]
[1772583162253,4.29122136,1982.7,1982.1,3.04285879]
[1772583162761,3.03031213,1982.7,1982.1,3.04285879]
[1772583163286,0.001,1982.7,1982.1,3.04285879]
[1772583163577,0.001,1982.7,1982.3,3.03993263]
[1772583164379,3.03031213,1982.6,1982.1,1.26123747]
[1772583166791,4.29034617,1982.5,1982.0,1.26245216]
[1772583167092,3.02931213,1982.4,1982.0,0.0011]
[1772583168896,1.26116127,1982.3,1982.0,0.0011]
[1772583169597,4.29427366,1982.3,1982.0,0.0011]
[1772583169762,3.03311239,1982.2,1982.0,0.0011]
[1772583170895,4.29434361,1982.2,1982.0,0.0011]
[1772583171769,4.29423878,1982.4,1982.0,0.0011]
[1772583172592,3.03311239,1982.3,1982.0,0.0011]
[1772583173096,4.29429846,1982.3,1982.0,0.0011]
[1772583174272,3.03311239,1982.2,1982.0,0.0011]
[1772583174675,3.03311239,1982.2,1981.8,0.0011]
[1772583175393,1.26128853,1982.1,1981.8,0.0011]
[1772583175576,4.29440092,1982.1,1981.8,0.0011]
[1772583176376,4.29440092,1982.1,1981.9,0.0011]
[1772583177101,3.03311239,1982.0,1981.9,0.0011]
[1772583177302,1.26128853,1982.1,1981.9,0.0011]
[1772583178183,3.03311239,1982.2,1981.9,0.0011]
[1772583178500,3.324206,1982.3,1981.9,0.0011]
[1772583178896,1.261206,1982.3,1981.9,0.0011]
[1772583180485,4.29522956,1982.4,1981.9,4.25566627]
[1772583181679,3.03311239,1982.3,1981.9,4.25566627]
[1772583182904,4.2943161,1982.3,1981.9,4.25566291]
[1772583183101,4.2943161,1982.3,1981.9,0.0011]
[1772583183102,3.03311239,1982.2,1981.9,0.0011]
[1772583184778,1.26128853,1982.1,1981.9,0.0011]
[1772583185774,5.04550615,1982.4,1981.9,2.97862556]
[1772583185775,4.29524601,1982.4,1981.9,2.97862556]
[1772583186323,3.03311239,1982.3,1981.9,2.97862556]
[1772583186921,3.03311239,1982.1,1981.9,0.0011]
[1772583189131,4.29440092,1982.1,1982.0,0.0011]
[1772583189901,3.03311239,1982.0,1981.8,0.0011]
[1772583191124,4.29451169,1982.0,1981.8,0.0011]
[1772583191326,3.32720831,1982.3,1981.8,2.96819595]
[1772583191507,6.3603207,1982.3,1981.8,2.96819595]
[1772583193003,3.03311239,1982.2,1981.8,2.96819595]
[1772583193203,1.26128853,1982.1,1981.8,0.0022]
[1772583193404,3.03311239,1982.0,1981.8,0.0011]
[1772583194335,3.03311239,1982.0,1981.7,0.0011]
[1772583194528,3.03311239,1981.8,1981.5,0.0011]
[1772583194728,3.03311239,1981.8,1981.6,0.0011]
[1772583195329,1.26154311,1981.7,1981.6,0.0011]
[1772583195726,3.03311239,1981.8,1981.6,0.0011]
[1772583195927,3.03311239,1982.0,1981.6,2.95485005]
[1772583196129,5.10011239,1982.0,1981.6,2.95485005]
[1772583197639,1.26141581,1981.9,1981.6,0.0011]
[1772583200128,4.16541474,1981.9,1981.6,0.0011]
[1772583200450,2.90399893,1981.8,1981.6,0.0011]
[1772583200645,2.90399893,1982.0,1981.6,0.0011]
[1772583200947,4.16535669,1982.0,1981.6,2.94145278]
[1772583201144,4.16535669,1982.0,1981.7,0.0011]
[1772583201346,4.16525812,1982.2,1981.7,2.94145278]
[1772583201644,4.16625812,1982.2,1981.8,0.0011]
[1772583202231,0.001,1982.3,1982.0,2.93798032]
[1772583202626,0.001,1982.6,1982.1,2.93561939]
[1772583203145,1.26197607,1982.6,1982.1,2.93561939]
[1772583203349,2.90399893,1982.5,1982.2,0.0011]
[1772583203648,2.90399893,1982.5,1981.9,2.93346487]
[1772583205324,4.16509658,1982.4,1982.0,1.26135216]
[1772583205753,2.90399893,1982.3,1982.0,0.0011]
[1772583205953,2.90399893,1982.2,1981.7,0.0011]
[1772583207526,2.90399893,1982.0,1981.7,0.0011]
[1772583209529,2.90399893,1981.8,1981.5,0.0011]
[1772583209767,2.90399893,1981.7,1981.5,0.0022]
[1772583210264,2.90399893,1981.7,1981.5,0.0011]
[1772583212350,4.16560571,1981.6,1981.5,0.0011]
[1772583214281,6.23760571,1981.6,1981.5,0.0011]
[1772583215678,6.23860571,1981.6,1981.5,0.0011]
[1772583218179,4.16560571,1981.6,1981.5,0.0011]
[1772583218380,6.23960571,1981.6,1981.5,0.0011]
[1772583218770,6.23960571,1981.6,1981.3,0.0011]
[1772583218977,2.90399893,1981.5,1980.6,2.90080802]
[1772583219180,2.90399893,1981.5,1980.6,4.16302601]
[1772583219381,2.90399893,1981.5,1980.7,2.90190802]
[1772583220404,2.90399893,1981.3,1980.7,2.90190802]
[1772583220794,2.90399893,1981.3,1980.7,4.16408227]
[1772583221006,2.90399893,1981.3,1980.8,2.89658209]
[1772583221307,4.97899893,1981.3,1980.8,2.89658209]
[1772583221693,2.90399893,1981.2,1980.7,0.0011]
[1772583222483,2.90399893,1981.0,1980.7,0.0011]
[1772583223013,2.90399893,1980.8,1980.5,0.0011]
[1772583224190,4.98099893,1980.8,1980.5,0.0011]
[1772583224608,1.26213208,1980.8,1980.5,0.0011]
[1772583224814,3.33904169,1981.0,1980.5,2.84855344]
[1772583225011,6.24304062,1981.0,1980.6,0.0011]
[1772583226429,2.90399893,1980.9,1980.6,0.0011]
[1772583226624,2.90399893,1980.9,1980.4,0.0011]
[1772583226829,2.90399893,1980.7,1980.4,0.0011]
[1772583228032,3.33903291,1981.0,1980.4,2.8025079]
[1772583228234,4.22734485,1981.0,1980.4,2.8025079]
[1772583228597,6.30534485,1981.0,1980.4,2.8025079]
[1772583228798,4.22734485,1981.0,1980.4,2.8025079]
[1772583229025,6.30534485,1981.0,1980.4,4.06483159]
[1772583229224,4.22734485,1981.0,1980.5,2.79156544]
[1772583229426,6.30534485,1981.0,1980.5,2.79156544]
[1772583230531,4.22734485,1981.0,1980.5,2.79156544]
[1772583230831,4.22734485,1981.0,1980.4,0.0011]
[1772583230832,1.26211631,1980.8,1980.4,0.0011]
[1772583231444,2.96531194,1980.7,1980.4,0.0011]
[1772583231652,2.96531194,1980.5,1979.9,2.757744]
[1772583232927,1.26237123,1980.4,1979.9,4.02042344]
[1772583233130,1.26237123,1980.4,1979.9,2.757744]
[1772583233642,4.22768317,1980.4,1979.9,2.757744]
[1772583233848,4.22768317,1980.4,1979.8,1.26270879]
[1772583234223,4.22768317,1980.4,1979.7,5.92457612]
[1772583234420,2.96531194,1980.3,1979.7,4.66181046]
[1772583234739,2.96531194,1980.3,1979.7,5.92462048]
[1772583234941,1.26249873,1980.2,1979.7,5.92462048]
[1772583235146,4.22781067,1980.2,1979.7,4.66181046]
[1772583235342,4.22781067,1980.2,1979.7,3.99863831]
[1772583237350,4.22781067,1980.2,1979.7,2.73583522]
[1772583237650,4.22781067,1980.2,1979.8,0.0011]
[1772583238152,2.96531194,1980.1,1979.8,0.0011]
[1772583239772,4.2279359,1980.1,1979.8,0.0011]
[1772583241135,8.01479397,1980.5,1979.9,2.66240038]
[1772583241340,0.001,1980.6,1979.9,2.66240038]
[1772583241760,0.001,1980.6,1980.0,1.26262626]
[1772583242949,0.001,1980.6,1980.2,1.41879905]
[1772583243468,4.22711906,1981.3,1980.2,1.41879905]
[1772583243644,0.001,1981.1,1980.2,1.41879905]
[1772583243844,0.001,1981.1,1980.4,1.40976346]
[1772583245577,5.0475506,1981.6,1980.8,1.39200187]
[1772583245578,0.001,1981.6,1980.8,1.39200187]
[1772583245745,0.001,1981.4,1980.8,1.39200187]
[1772583246161,0.001,1981.4,1981.0,1.39200187]
[1772583247464,0.001,1981.9,1981.1,1.37353714]
[1772583247665,0.001,1981.8,1981.2,1.37353714]
[1772583249194,0.001,1981.8,1981.3,1.2617978]
[1772583250200,0.001,1981.7,1981.3,1.2617978]
[1772583250572,0.001,1981.6,1981.3,1.2617978]
[1772583250897,2.96631194,1981.8,1981.3,1.2357978]
[1772583251092,0.001,1981.7,1981.3,1.2357978]
[1772583251266,0.001,1981.7,1981.3,1.34800062]
[1772583252411,2.96631194,1981.6,1981.1,1.26188843]
[1772583253209,0.001,1981.5,1981.1,1.26188843]
[1772583253491,0.001,1981.5,1981.1,2.59399841]
[1772583254591,2.96531194,1981.8,1981.2,1.31578188]
[1772583254788,2.96531194,1981.7,1981.1,1.26188843]
[1772583255028,2.96531194,1981.7,1981.1,2.57767031]
[1772583256019,2.96531194,1981.7,1980.9,6.35593828]
[1772583256323,2.96531194,1981.7,1981.0,1.30775957]
[1772583256523,2.96531194,1981.6,1981.0,1.30775957]
[1772583256724,2.96531194,1981.6,1980.9,5.04817871]
[1772583257599,2.96531194,1981.6,1981.0,1.2918897]
[1772583258127,2.96531194,1981.6,1981.1,2.55381489]
[1772583259494,2.68562622,1981.8,1981.2,1.2702623]
[1772583259728,1.26243055,1981.9,1981.2,1.2702623]
[1772583259729,0.001,1981.9,1981.2,1.2702623]
[1772583259901,0.001,1981.9,1981.3,1.2617978]
[1772583260112,0.001,1981.9,1981.4,1.26427534]
[1772583261839,0.001,1981.9,1981.3,2.51107628]
[1772583261840,2.68662622,1981.9,1981.3,2.51107628]
[1772583263408,2.68562622,1981.8,1981.3,1.2617978]
[1772583264022,2.68562622,1981.6,1981.2,5.04719123]
[1772583264329,2.68562622,1981.8,1981.2,6.28176421]
[1772583265913,2.68562622,1981.8,1981.4,1.26173412]
[1772583266417,2.68662622,1981.9,1981.4,2.48187447]
[1772583267333,2.68562622,1981.8,1981.3,1.26175066]
[1772583268307,2.68562622,1981.7,1981.3,1.26175066]
[1772583268763,2.68562622,1981.7,1981.2,5.04731772]
[1772583270030,2.68562622,1981.7,1981.2,6.23937179]
[1772583272064,3.94809071,1981.9,1981.3,1.17838261]
[1772583272458,2.68562622,1981.8,1981.3,1.17838261]
[1772583272824,0.001,1981.9,1981.3,1.17838261]
[1772583273030,2.68562622,1982.3,1981.5,1.17164556]
[1772583273426,2.68562622,1982.3,1981.6,1.26160678]
[1772583273632,2.68562622,1982.3,1981.7,1.1649772]
[1772583274555,2.68562622,1982.2,1981.6,1.26160678]
[1772583274756,0.001,1981.7,1981.6,1.26160678]
[1772583274964,2.68562622,1982.0,1981.6,1.26160678]
[1772583275824,2.68562622,1982.0,1981.3,6.20553003]
[1772583276148,2.68562622,1982.4,1981.5,1.15183014]
[1772583278481,2.68562622,1982.2,1981.6,2.40056111]
[1772583281659,3.94685691,1982.2,1981.7,1.11111641]
[1772583281864,2.68562622,1982.2,1981.7,1.11111641]
[1772583283491,2.68562622,1982.2,1981.8,1.26147946]
[1772583284019,2.68562622,1982.1,1981.7,1.2615011]
[1772583284312,2.68562622,1982.1,1981.8,0.05045917]
[1772583286005,2.68562622,1982.1,1981.8,1.3119028]
[1772583286509,2.68662622,1982.1,1981.8,1.3119028]
[1772583287308,2.68662622,1982.1,1981.8,1.31193571]
[1772583289906,2.67277824,1982.0,1981.8,0.05045917]
[1772583290533,2.67277824,1982.0,1981.5,1.26165405]
[1772583290708,2.72323756,1982.0,1981.5,1.26165405]
[1772583292501,2.67277824,1981.8,1981.4,0.0011]
[1772583294813,2.67277824,1981.6,1981.4,0.0011]
[1772583295918,2.67277824,1981.8,1981.4,1.04253347]
[1772583297021,2.67277824,1981.8,1981.5,1.26167045]
[1772583298599,2.67277824,1981.8,1981.5,1.26277045]
[1772583299116,2.67277824,1981.7,1981.5,0.0011]
[1772583300325,2.67277824,1981.7,1981.3,0.0011]
[1772583300925,2.67277824,1981.7,1981.2,1.00544531]
[1772583301126,2.67277824,1981.7,1981.3,2.26724311]
[1772583301425,0.05045932,1981.8,1981.4,1.00544531]
[1772583301730,0.001,1982.0,1981.4,1.00544531]
[1772583302133,2.67277824,1981.9,1981.4,1.00544531]
[1772583302339,2.72323756,1981.9,1981.4,1.00544531]
[1772583302635,2.67277824,1981.9,1981.4,1.00544531]
[1772583303429,2.67277824,1981.9,1981.5,1.26167045]
[1772583303795,2.67277824,1981.8,1981.2,2.24593702]
[1772583304028,2.72323756,1981.8,1981.2,2.24593702]
[1772583305012,2.72323756,1981.8,1981.3,0.97712508]
[1772583305421,2.72323756,1981.8,1981.4,1.26173412]
[1772583307829,3.98471709,1981.8,1981.4,1.26173412]
[1772583308328,2.72323756,1981.8,1981.4,1.26173412]
[1772583308644,2.72323756,1981.8,1981.4,2.21147599]
[1772583308939,2.67277824,1981.8,1981.4,2.21147599]
[1772583309100,2.72423756,1982.0,1981.5,0.94974187]
[1772583309530,2.67277824,1981.9,1981.5,0.94974187]
[1772583309829,2.67277824,1981.9,1981.6,1.26160678]
[1772583310924,3.93419543,1981.9,1981.5,2.21141232]
[1772583311124,2.67277824,1981.9,1981.5,2.21141232]
[1772583311339,0.05145932,1982.0,1981.6,0.93642809]
[1772583311503,2.67377824,1982.0,1981.6,0.93642809]
[1772583311700,2.67377824,1982.0,1981.6,2.19802911]
[1772583311701,3.93513452,1982.0,1981.6,2.19802911]
[1772583311906,2.67277824,1981.9,1981.5,1.26163446]
[1772583313601,2.67277824,1981.9,1981.5,2.17859265]
[1772583313830,2.67277824,1981.9,1981.6,0.91695819]
[1772583314221,2.72423756,1982.0,1981.6,0.91695819]
[1772583314419,0.001,1982.0,1981.6,0.91695819]
[1772583316436,0.001,1982.0,1981.6,1.26160678]
[1772583316437,2.67377824,1982.0,1981.6,1.26160678]
[1772583318450,2.67377824,1982.0,1981.6,2.14727388]
[1772583318615,0.001,1982.0,1981.7,0.8856671]
[1772583319736,2.50555534,1981.9,1981.5,5.91702704]
[1772583320710,2.50555534,1981.9,1981.6,0.91500154]
[1772583321754,0.001,1982.0,1981.6,0.91500154]
[1772583322957,0.001,1982.0,1981.7,2.11546945]
[1772583323160,0.001,1981.9,1981.8,0.05045917]
[1772583325134,0.001,1981.9,1981.8,1.31193863]
[1772583325755,0.001,1981.9,1981.8,0.05045917]
[1772583326036,0.001,1982.0,1981.8,0.05045917]
[1772583326037,0.001,1982.0,1981.8,2.14764369]
[1772583328542,2.50555534,1982.5,1981.9,0.92443062]
[1772583328745,2.55601466,1982.5,1982.0,1.67360291]
[1772583328946,2.55601466,1982.5,1981.7,1.26259541]
[1772583329347,2.50555534,1982.3,1981.7,1.26259541]
[1772583329558,2.55601466,1982.3,1981.7,2.17914472]
[1772583332046,1.2612249,1982.2,1981.7,2.17914472]
[1772583332346,2.50555534,1982.1,1981.7,2.17914472]
[1772583332549,2.50555534,1982.1,1981.7,0.0011]
[1772583332751,2.50555534,1982.1,1981.7,1.26263902]
[1772583332955,2.50555534,1982.1,1981.7,0.0011]
[1772583333154,2.50555534,1982.1,1981.7,1.26262696]
[1772583334472,2.50555534,1981.9,1981.5,0.0011]
[1772583334670,2.50555534,1981.9,1981.5,1.26276248]
[1772583335750,2.50555534,1981.9,1981.7,0.0011]
[1772583336269,2.50555534,1981.9,1981.5,0.0011]
[1772583336683,2.50555534,1981.7,1981.5,0.0011]
[1772583337263,3.76701731,1981.9,1981.5,0.0011]
[1772583337787,2.50555534,1981.8,1981.5,0.0011]
[1772583338189,0.001,1982.0,1981.5,0.87745662]
[1772583338390,2.50655534,1982.0,1981.5,0.87745662]
[1772583338563,0.001,1982.0,1981.5,0.87745662]
[1772583339685,0.001,1982.0,1981.6,1.26160678]
[1772583339874,2.50655534,1982.0,1981.6,2.12809659]
[1772583340075,2.50655534,1982.0,1981.6,1.26160678]
[1772583340273,2.50655534,1982.0,1981.5,1.26272903]
[1772583341502,2.50655534,1982.0,1981.5,2.11533433]
[1772583341709,0.001,1982.0,1981.7,1.26154311]
[1772583342072,0.001,1982.0,1981.7,2.11414841]
[1772583342274,0.001,1982.0,1981.8,0.8526053]
[1772583342679,2.50555534,1982.2,1981.8,0.8526053]
[1772583342999,1.31156184,1982.4,1981.8,0.8526053]
[1772583343311,1.31156184,1982.4,1981.7,2.01614685]
[1772583343312,2.50555534,1982.5,1981.9,1.59828913]
[1772583343605,2.50555534,1982.5,1981.5,0.0011]
[1772583343606,2.50555534,1982.0,1981.5,0.0011]
[1772583343772,2.50555534,1981.8,1981.5,0.0011]
[1772583345410,2.50555534,1982.0,1981.6,0.75460374]
[1772583345572,2.50555534,1982.2,1981.7,0.82615748]
[1772583346400,2.50555534,1982.1,1981.8,1.26147946]
[1772583347272,2.50555534,1982.1,1981.5,0.810051]
[1772583347467,2.55601466,1982.1,1981.5,1.26271983]
[1772583347692,2.55601466,1982.1,1981.6,0.0011]
[1772583347872,2.50555534,1981.9,1981.6,0.0011]
[1772583349677,2.36991405,1981.7,1981.6,0.0011]
[1772583351414,2.36991405,1981.9,1981.6,0.0011]
[1772583351897,2.42037337,1981.9,1981.6,0.0011]
[1772583353502,2.42037337,1981.9,1981.5,0.0011]
[1772583353503,2.36991405,1981.8,1981.5,0.0011]
[1772583353997,2.36991405,1981.7,1981.5,0.0011]
[1772583354297,2.36991405,1981.7,1981.4,0.0011]
[1772583357198,2.36991405,1981.6,1981.4,0.0011]
[1772583357583,2.36991405,1981.8,1981.4,0.0011]
[1772583359514,2.36991405,1981.8,1981.4,0.70874827]
[1772583359718,2.36991405,1981.9,1981.5,0.0011]
[1772583359918,0.05045932,1981.8,1981.5,0.02222653]
[1772583360125,2.42037337,1981.9,1981.5,0.02222653]
[1772583360895,2.42037337,1981.9,1981.5,0.69392498]
[1772583361093,2.42037337,1981.9,1981.6,0.02112546]
[1772583361494,2.42037337,1981.9,1981.6,1.2827034]
[1772583361825,0.001,1982.0,1981.7,0.68554081]
[1772583363030,0.001,1982.0,1981.6,1.2827034]
[1772583363220,0.001,1982.0,1981.6,1.96101182]
[1772583364426,0.001,1982.0,1981.7,0.67114247]
[1772583365698,0.001,1982.0,1981.8,1.26147946]
[1772583367228,0.001,1982.0,1981.8,1.91157149]
[1772583368142,0.001,1982.0,1981.8,1.26147946]
[1772583368827,0.001,1982.0,1981.8,1.89786313]
[1772583369746,0.001,1982.0,1981.8,1.26147946]
[1772583370347,0.001,1982.0,1981.7,5.67579589]
[1772583371447,0.001,1981.9,1981.7,5.67579589]
[1772583371947,0.001,1981.9,1981.8,0.61636603]
[1772583372149,0.001,1981.9,1981.8,1.87784549]
[1772583373347,0.001,1981.9,1981.7,1.26149168]
[1772583373846,0.001,1981.9,1981.7,1.86480418]
[1772583375261,0.001,1981.9,1981.7,1.26149168]
[1772583375470,0.001,1981.9,1981.8,0.59688064]
[1772583375979,1.26120879,1982.3,1981.8,0.59688064]
[1772583375980,0.001,1982.6,1981.9,0.59050835]
[1772583376274,2.42137337,1982.6,1981.9,0.59050835]
[1772583376570,2.37091405,1982.6,1981.9,0.59050835]
[1772583377165,2.36991405,1982.8,1982.1,0.58318762]
[1772583377366,2.36991405,1982.8,1982.3,0.58318762]
[1772583379765,2.36991405,1982.8,1982.4,1.26109765]
[1772583379971,2.36991405,1982.8,1982.4,1.81769848]
[1772583380362,5.04251243,1983.2,1982.4,1.81769848]
[1772583380363,2.23419953,1983.0,1982.5,0.55660083]
[1772583381463,2.23419953,1983.2,1982.6,0.55061909]
[1772583381989,0.001,1983.3,1982.8,0.54470102]
[1772583382770,0.001,1983.3,1981.8,5.58473579]
[1772583382771,2.23419953,1983.2,1981.8,5.58473579]
[1772583382975,2.23419953,1983.2,1982.2,0.53883006]
[1772583383286,0.001,1983.1,1982.4,0.0011]
[1772583383490,2.23419953,1983.0,1982.4,0.0011]
[1772583383687,2.23419953,1983.0,1982.4,0.53412469]
[1772583383875,2.23419953,1982.9,1982.5,1.26103404]
[1772583387285,2.23419953,1982.9,1982.5,1.77696558]
[1772583393788,3.49590557,1983.1,1982.6,0.47794977]
[1772583394210,2.23419953,1983.0,1982.5,1.26103404]
[1772583394413,3.49491731,1983.0,1982.4,0.47904977]
[1772583394720,2.23419953,1983.0,1982.4,0.47904977]
[1772583395398,3.49491726,1983.0,1982.4,0.47904977]
[1772583395603,2.23419953,1983.0,1982.4,0.47904977]
[1772583395767,2.23419953,1983.0,1982.4,0.0011]
[1772583395972,2.23519953,1982.8,1982.4,0.0011]
[1772583396198,2.23519953,1982.8,1982.4,0.46863364]
[1772583396405,2.23519953,1982.8,1982.5,1.26103404]
[1772583396609,0.001,1982.8,1982.5,1.26103404]
[1772583396811,0.001,1982.8,1982.5,1.72343327]
[1772583398910,2.23519953,1983.1,1982.6,0.94625716]
[1772583399391,0.001,1983.1,1982.6,0.94625716]
[1772583399785,0.001,1983.3,1982.7,0.94165951]
[1772583400187,0.001,1983.3,1982.8,0.94165951]
[1772583400587,0.001,1983.3,1982.9,2.20243917]
[1772583400990,0.001,1983.3,1983.0,0.95145524]
[1772583402185,2.23519953,1983.3,1982.9,1.26077966]
[1772583402514,2.23519953,1983.3,1982.7,6.87911866]
[1772583402515,2.23519953,1983.3,1982.7,3.09685953]
[1772583403609,3.49574299,1983.3,1982.7,3.09685953]
[1772583403913,2.23419953,1983.2,1982.7,3.09685953]
[1772583404521,0.001,1983.3,1982.8,0.9303091]
[1772583404738,0.001,1983.6,1982.8,0.92337595]
[1772583405095,2.23519953,1983.8,1983.1,2.41489572]
[1772583406319,2.23519953,1983.8,1983.2,3.67548466]
[1772583406619,2.23519953,1983.8,1983.4,2.41489572]
[1772583406620,0.001,1983.8,1983.4,2.41489572]
[1772583406823,2.23519953,1983.8,1983.4,2.41489572]
[1772583406996,2.23519953,1983.8,1983.2,3.67548466]
[1772583407501,2.23419953,1983.7,1983.2,1.26058894]
[1772583408023,1.26120837,1983.8,1983.6,2.33224194]
[1772583408024,0.001,1983.8,1983.6,2.33224194]
[1772583408219,3.61829428,1984.1,1983.5,0.98840286]
[1772583408421,2.35827178,1984.0,1983.4,3.59267955]
[1772583408630,2.35827178,1984.0,1983.4,1.26043761]
[1772583408818,2.35827178,1983.8,1982.8,2.33224194]
[1772583410430,2.35827178,1983.6,1982.9,1.26077966]
[1772583410614,2.35827178,1983.6,1982.8,3.59304927]
[1772583412171,2.35827178,1983.6,1982.9,2.33224194]
[1772583412474,3.61861639,1983.6,1983.0,3.59295802]
[1772583412635,2.35827178,1983.6,1983.0,3.59295802]
[1772583412835,2.35827178,1983.6,1983.1,2.33224194]
[1772583413459,2.35827178,1983.8,1983.1,2.33224194]
[1772583414262,2.35827178,1985.7,1984.2,2.33224194]
[1772583414441,2.35827178,1985.7,1984.8,2.33224194]
[1772583414442,1.74683575,1985.6,1984.8,2.33224194]
[1772583414841,1.74683575,1985.6,1984.9,2.80118032]
[1772583415158,2.35827178,1985.9,1985.0,2.77533356]
[1772583415336,3.61719684,1985.9,1985.1,2.80118032]
[1772583415536,3.61719684,1985.9,1985.2,0.46893838]
[1772583415743,3.61719684,1985.9,1985.1,2.33224194]